fUST/lending_fUST_20240115
["ID","MTS","AMOUNT","RATE_DAILY","PERIOD"]
[311679498,1705324239004,-500.0,0.00029998,2]
[311679500,1705324239013,-500.0,0.00029998,2]
[311679502,1705324239021,-500.0,0.00029998,2]
[311679504,1705324239030,-500.0,0.00029998,2]
[311679506,1705324239039,-500.0,0.00029998,2]
[311679508,1705324239048,-500.0,0.00029998,2]
[311679510,1705324239057,-500.0,0.00029998,2]
[311679512,1705324239068,-500.0,0.00029998,2]
[311679514,1705324239077,-192.45584949,0.00029998,2]
[311679516,1705324239087,-476.87307517,0.00029998,2]
[311679518,1705324239096,-500.0,0.00029998,2]
[311679520,1705324239105,-500.0,0.00029998,2]
[311679522,1705324239115,-500.0,0.00029998,2]
[311679524,1705324239124,-500.0,0.00029998,2]
[311679526,1705324239132,-500.0,0.00029998,2]
[311679528,1705324239141,-500.0,0.00029998,2]
[311679530,1705324239151,-500.0,0.00029998,2]
[311679532,1705324239160,-500.0,0.00029998,2]
[311679534,1705324239170,-621.2468725,0.00029998,2]
[311679535,1705324239180,-502.31809949,0.00029998,2]
[311679536,1705324239189,-500.0,0.00029998,2]
[311679538,1705324239198,-500.0,0.00029998,2]
[311679541,1705324239208,-500.0,0.00029998,2]
[311679552,1705324239304,-500.0,0.00029998,2]
[311679554,1705324239313,-500.0,0.00029998,2]
[311679557,1705324239322,-500.0,0.00029998,2]
[311679560,1705324239331,-500.0,0.00029998,2]
[311679562,1705324239340,-500.0,0.00029998,2]
[311679565,1705324239349,-500.0,0.00029998,2]
[311679567,1705324239358,-500.0,0.00029998,2]
[311679569,1705324239367,-500.0,0.00029998,2]
[311679572,1705324239376,-278.83339812,0.00029998,2]
[311679575,1705324239385,-500.0,0.00029998,2]
[311679578,1705324239395,-500.0,0.00029998,2]
[311679581,1705324239404,-500.0,0.00029998,2]
[311679584,1705324239413,-500.0,0.00029998,2]
[311679586,1705324239424,-500.0,0.00029998,2]
[311679588,1705324239434,-500.0,0.00029998,2]
[311679591,1705324239443,-500.0,0.00029998,2]
[311679593,1705324239452,-500.0,0.00029998,2]
[311679596,1705324239462,-500.0,0.00029998,2]
[311679599,1705324239471,-500.0,0.00029998,2]
[311679601,1705324239481,-500.0,0.00029998,2]
[311679604,1705324239490,-500.0,0.00029998,2]
[311679606,1705324239499,-500.0,0.00029998,2]
[311679609,1705324239508,-500.0,0.00029998,2]
[311679610,1705324239517,-500.0,0.00029998,2]
[311679612,1705324239527,-500.0,0.00029998,2]
[311679614,1705324239538,-500.0,0.00029998,2]
[311679616,1705324239547,-500.0,0.00029998,2]
[311679617,1705324239556,-565.81614206,0.00029998,2]
[311679619,1705324239566,-500.0,0.00029998,2]
[311679620,1705324239575,-500.0,0.00029998,2]
[311679622,1705324239584,-500.0,0.00029998,2]
[311679624,1705324239593,-500.0,0.00029998,2]
[311679625,1705324239602,-500.0,0.00029998,2]
[311679627,1705324239611,-500.0,0.00029998,2]
[311679628,1705324239620,-500.0,0.00029998,2]
[311679630,1705324239629,-500.0,0.00029998,2]
[311679632,1705324239638,-500.0,0.00029998,2]
[311679633,1705324239648,-500.0,0.00029998,2]
[311679635,1705324239657,-500.0,0.00029998,2]
[311679636,1705324239666,-500.0,0.00029998,2]
[311679638,1705324239678,-500.0,0.00029998,2]
[311679639,1705324239688,-500.0,0.00029998,2]
[311679641,1705324239697,-500.0,0.00029998,2]
[311679643,1705324239705,-500.0,0.00029998,2]
[311679644,1705324239714,-500.0,0.00029998,2]
[311679646,1705324239724,-529.55402141,0.00029998,2]
[311679648,1705324239733,-500.0,0.00029998,2]
[311679650,1705324239743,-500.0,0.00029998,2]
[311679651,1705324239752,-363.49,0.00029998,2]
[311679653,1705324239761,-1699.710118,0.00029999,2]
[311679655,1705324239770,-1699.710118,0.00029999,2]
[311679656,1705324239779,-151.0,0.00029999,2]
[311679658,1705324239790,-681.78811125,0.0003,3]
[311679660,1705324239799,-900.59678191,0.0003,2]
[311679662,1705324239808,-166.59677014,0.0003,2]
[311679663,1705324239816,-30296.60621537,0.0003,2]
[311679665,1705324239825,-154.9690062,0.0003,4]
[311679666,1705324239834,-6188.54002624,0.0003,2]
[311679668,1705324239847,-10080.32088893,0.0003,2]
[311679670,1705324239856,-2190.506869,0.0003,2]
[311679671,1705324239865,-2046.884197,0.0003,2]
[311679673,1705324239874,-1699.710118,0.0003,2]
[311679675,1705324239883,-1699.710118,0.0003,2]
[311679676,1705324239893,-303.0,0.0003,2]
[311679678,1705324239902,-151.0,0.0003,2]
[311679680,1705324239911,-197.5089968,0.0003013,2]
[311679682,1705324239922,-500.0,0.00030136,2]
[311679685,1705324239931,-200.0,0.00030139,15]
[311679688,1705324239940,-1189.78,0.00030161,2]
[311679691,1705324239950,-3479.89143237,0.00030377,4]
[311679693,1705324239959,-3712.18106101,0.00030552,2]
[311679696,1705324239969,-377.0,0.00030969,30]
[311679699,1705324239978,-4799.0,0.0003097,30]
[311679701,1705324239987,-495.0,0.0003097,30]
[311679704,1705324239997,-377.0,0.00030979,30]
[311679706,1705324240006,-4799.0,0.0003098,30]
[311679708,1705324240015,-495.0,0.0003098,30]
[311679710,1705324240024,-377.0,0.00030989,30]
[311679712,1705324240033,-4799.0,0.0003099,30]
[311679713,1705324240042,-495.0,0.0003099,30]
[311679715,1705324240051,-156.20229825,0.00030992,7]
[311679717,1705324240061,-444.52481973,0.00030997,4]
[311679718,1705324240070,-237.09495967,0.00030997,4]
[311679720,1705324240079,-3178.58490087,0.00030997,4]
[311679722,1705324240088,-926.06657088,0.00030997,4]
[311679724,1705324240097,-622.85502582,0.00030999,4]
[311679725,1705324240107,-202.73433386,0.00030999,4]
[311679727,1705324240116,-500.0,0.00030999,4]
[311679729,1705324240125,-400.87154269,0.00030999,4]
[311679730,1705324240134,-497.83570284,0.00030999,4]
[311679732,1705324240142,-500.0,0.00030999,4]
[311679734,1705324240151,-500.0,0.00030999,4]
[311679735,1705324240160,-500.0,0.00030999,4]
[311679737,1705324240169,-500.0,0.00030999,4]
[311679739,1705324240179,-500.0,0.00030999,4]
[311679741,1705324240188,-500.0,0.00030999,4]
[311679742,1705324240197,-500.0,0.00030999,4]
[311679744,1705324240206,-500.0,0.00030999,4]
[311679746,1705324240215,-500.0,0.00030999,4]
[311679747,1705324240224,-500.0,0.00030999,4]
[311679749,1705324240234,-500.0,0.00030999,4]
[311679751,1705324240243,-500.0,0.00030999,4]
[311679753,1705324240252,-500.0,0.00030999,4]
[311679754,1705324240261,-500.0,0.00030999,4]
[311679756,1705324240270,-500.0,0.00030999,4]
[311679758,1705324240279,-500.0,0.00030999,4]
[311679759,1705324240288,-500.0,0.00030999,4]
[311679761,1705324240298,-500.0,0.00030999,4]
[311679763,1705324240307,-500.0,0.00030999,4]
[311679764,1705324240316,-504.73196942,0.00030999,4]
[311679766,1705324240324,-500.0,0.00030999,4]
[311679768,1705324240333,-500.0,0.00030999,4]
[311679770,1705324240342,-500.0,0.00030999,4]
[311679771,1705324240351,-500.0,0.00030999,4]
[311679773,1705324240360,-500.0,0.00030999,4]
[311679775,1705324240369,-500.0,0.00030999,4]
[311679776,1705324240378,-500.0,0.00030999,4]
[311679778,1705324240387,-500.0,0.00030999,4]
[311679780,1705324240396,-500.0,0.00030999,4]
[311679781,1705324240405,-500.0,0.00030999,4]
[311679783,1705324240414,-500.0,0.00030999,4]
[311679785,1705324240426,-500.0,0.00030999,4]
[311679787,1705324240434,-580.0,0.00030999,4]
[311679788,1705324240443,-500.0,0.00030999,4]
[311679790,1705324240453,-500.0,0.00030999,4]
[311679792,1705324240462,-363.49,0.00030999,2]
[311679793,1705324240471,-363.49,0.00030999,2]
[311679795,1705324240480,-5768.10702242,0.00031,4]
[311679804,1705324240583,-49388.89355025,0.00031,4]
[311679806,1705324240595,-314.77736395,0.00031,4]
[311679830,1705324240893,-6371.21,0.00028878,3]
[311679831,1705324240903,-1585.01194093,0.00031,4]
[311679833,1705324240914,-4057.8172172,0.00031,4]
[311679836,1705324241002,-307.18466658,0.00031,4]
[311679837,1705324241014,-685.25000075,0.00031,4]
[311679867,1705324243239,-613.92528216,0.00029998,2]
[311679868,1705324243248,-2719.31578746,0.00031,4]
[311679947,1705325432101,-1991.06584155,0.00024206,2]
[311679949,1705325432111,-327.03801435,0.00024206,2]
[311679951,1705325432120,-154.9690062,0.00024207,4]
[311679953,1705325432130,-154.9690062,0.00024208,2]
[311679955,1705325432140,-154.9690062,0.00024209,2]
[311679957,1705325432150,-843.76911469,0.00024221,2]
[311679959,1705325432159,-250.0,0.00025018,2]
[311679961,1705325432170,-8362.911813,0.00025561,2]
[311679963,1705325432180,-162.1731887,0.00026104,2]
[311679965,1705325432189,-683.43603525,0.00026207,2]
[311679967,1705325432199,-3575.3523998,0.00026209,2]
[311679969,1705325432208,-169.47629997,0.000269,2]
[311679971,1705325432217,-7185.0,0.00026912,3]
[311679973,1705325432227,-8622.0,0.00026913,3]
[311679975,1705325432236,-10346.4,0.00026914,3]
[311679977,1705325432245,-155.82795528,0.0002692,2]
[311679979,1705325432254,-12810.69122197,0.0002692,2]
[311679981,1705325432263,-472.73464857,0.00026921,2]
[311679983,1705325432273,-272.098945,0.00026921,2]
[311679985,1705325432283,-466.88440498,0.00026921,2]
[311679987,1705325432292,-1221.14074006,0.00026921,2]
[311679989,1705325432301,-191.70792365,0.00026921,2]
[311679990,1705325432310,-336.65846622,0.00026921,2]
[311679991,1705325432319,-1416.1646277,0.00026922,2]
[311679992,1705325432328,-18947.85870637,0.00026922,2]
[311679993,1705325432337,-1576.73391587,0.00026923,2]
[311679994,1705325432347,-5254.12865398,0.00026923,2]
[311679995,1705325432359,-368.80142589,0.00026923,2]
[311680033,1705325441117,-9993.93149611,0.00026923,2]
[311680035,1705325441130,-325.23451081,0.00026923,2]
[311680037,1705325441140,-1811.276916,0.00026924,2]
[311680042,1705325441175,-1000.48768272,0.00026924,2]
[311680113,1705325443166,-316.70714734,0.00026924,2]
[311680114,1705325443179,-1758.81845998,0.00026924,2]
[311680186,1705325454201,-154.9690062,0.0002423,4]
[311680187,1705325454210,-327.35831071,0.00026922,2]
[311680188,1705325454218,-154.9690062,0.00026923,2]
[311680189,1705325454227,-155.41856048,0.00026923,2]
[311680190,1705325454236,-236.45684961,0.00026923,2]
[311680191,1705325454244,-599.77451252,0.00026924,2]
[311680192,1705325454272,-44512.93528144,0.00026924,2]
[311680193,1705325454281,-388.34340108,0.00027,2]
[311680194,1705325454290,-10135.33451069,0.000274,2]
[311680195,1705325454298,-498.96916502,0.00027521,5]
[311680196,1705325454308,-688.3625771,0.000277,2]
[311680197,1705325454316,-274.36755231,0.00028,2]
[311680198,1705325454325,-164.5773758,0.00028071,2]
[311680199,1705325454334,-200.0,0.00028116,15]
[311680200,1705325454343,-2769.42006443,0.00028899,2]
[311680201,1705325454352,-5987.5,0.00028961,3]
[311680202,1705325454361,-516.48702992,0.00028969,2]
[311680203,1705325454370,-288.31033543,0.0002897,2]
[311680204,1705325454378,-500.0,0.0002897,2]
[311680205,1705325454387,-46852.76541117,0.00028971,4]
[311680206,1705325454396,-26536.66943332,0.00028972,4]
[311680207,1705325454405,-5000.0,0.00028975,5]
[311680208,1705325454413,-383.68,0.00028978,2]
[311680209,1705325454422,-383.68,0.00028978,2]
[311680210,1705325454431,-383.68,0.00028978,2]
[311680211,1705325454440,-383.68,0.00028978,2]
[311680212,1705325454449,-383.68,0.00028978,2]
[311680213,1705325454458,-500.0,0.00028978,2]
[311680214,1705325454470,-500.0,0.00028978,2]
[311680215,1705325454479,-500.0,0.00028978,2]
[311680216,1705325454489,-500.0,0.00028978,2]
[311680217,1705325454498,-429.74769752,0.00028978,2]
[311680218,1705325454507,-500.0,0.00028978,2]
[311680219,1705325454516,-500.0,0.00028978,2]
[311680221,1705325454525,-875.72635067,0.00028978,2]
[311680223,1705325454534,-500.0,0.00028978,2]
[311680225,1705325454543,-875.72635067,0.00028978,2]
[311680226,1705325454554,-875.72635067,0.00028978,2]
[311680228,1705325454564,-192.45584949,0.00028978,2]
[311680230,1705325454573,-476.87307517,0.00028978,2]
[311680233,1705325454582,-621.2468725,0.00028978,2]
[311680234,1705325454591,-500.0,0.00028978,2]
[311680237,1705325454600,-567.30003888,0.00028978,2]
[311680238,1705325454610,-875.72635067,0.00028978,2]
[311680241,1705325454619,-500.0,0.00028978,2]
[311680243,1705325454628,-875.72635067,0.00028978,2]
[311680245,1705325454638,-500.0,0.00028978,2]
[311680246,1705325454648,-500.0,0.00028978,2]
[311680248,1705325454657,-500.0,0.00028978,2]
[311680250,1705325454666,-200.00000004,0.00028978,2]
[311680252,1705325454676,-875.72635067,0.00028978,2]
[311680254,1705325454685,-500.0,0.00028978,2]
[311680256,1705325454695,-500.0,0.00028978,2]
[311680258,1705325454705,-875.72635067,0.00028978,2]
[311680260,1705325454714,-875.72635067,0.00028978,2]
[311680262,1705325454723,-500.0,0.00028978,2]
[311680264,1705325454732,-875.72635067,0.00028978,2]
[311680266,1705325454741,-875.72635067,0.00028978,2]
[311680268,1705325454751,-875.72635067,0.00028978,2]
[311680270,1705325454760,-500.0,0.00028978,2]
[311680272,1705325454771,-875.72635067,0.00028978,2]
[311680274,1705325454779,-500.0,0.00028978,2]
[311680276,1705325454789,-875.72635067,0.00028978,2]
[311680278,1705325454798,-875.72635067,0.00028978,2]
[311680280,1705325454807,-875.72635067,0.00028978,2]
[311680282,1705325454817,-875.72635067,0.00028978,2]
[311680284,1705325454826,-502.31809949,0.00028978,2]
[311680286,1705325454835,-875.72635067,0.00028978,2]
[311680288,1705325454844,-500.0,0.00028978,2]
[311680290,1705325454853,-875.72635067,0.00028978,2]
[311680292,1705325454863,-875.72635067,0.00028978,2]
[311680294,1705325454871,-875.72635067,0.00028978,2]
[311680296,1705325454880,-875.72635067,0.00028978,2]
[311680297,1705325454890,-875.72635067,0.00028978,2]
[311680300,1705325454899,-875.72635067,0.00028978,2]
[311680301,1705325454908,-875.72635067,0.00028978,2]
[311680304,1705325454918,-875.72635067,0.00028978,2]
[311680305,1705325454928,-875.72635067,0.00028978,2]
[311680307,1705325454937,-875.72635067,0.00028978,2]
[311680310,1705325454949,-875.72635067,0.00028978,2]
[311680311,1705325454959,-875.72635067,0.00028978,2]
[311680314,1705325454969,-4809.28026756,0.00028978,2]
[311680315,1705325454978,-4809.28026756,0.00028978,2]
[311680317,1705325454988,-4809.28026756,0.00028978,2]
[311680319,1705325454997,-500.0,0.00028978,2]
[311680322,1705325455007,-211.53335924,0.00028978,2]
[311680331,1705325455088,-4809.28026756,0.00028978,2]
[311680333,1705325455099,-4809.28026756,0.00028978,2]
[311680335,1705325455108,-4809.28026756,0.00028978,2]
[311680337,1705325455118,-698.65798961,0.00028978,2]
[311680339,1705325455127,-698.65798961,0.00028978,2]
[311680341,1705325455136,-500.0,0.00028978,2]
[311680343,1705325455146,-4809.28026756,0.00028978,2]
[311680345,1705325455155,-698.65798961,0.00028978,2]
[311680347,1705325455165,-698.65798961,0.00028978,2]
[311680349,1705325455174,-698.65798961,0.00028978,2]
[311680351,1705325455183,-698.65798961,0.00028978,2]
[311680352,1705325455194,-698.65798961,0.00028978,2]
[311680353,1705325455203,-500.0,0.00028978,2]
[311680355,1705325455213,-698.65798961,0.00028978,2]
[311680357,1705325455222,-698.65798961,0.00028978,2]
[311680359,1705325455231,-4809.28026756,0.00028978,2]
[311680361,1705325455241,-698.65798961,0.00028978,2]
[311680363,1705325455250,-698.65798961,0.00028978,2]
[311680365,1705325455260,-698.65798961,0.00028978,2]
[311680367,1705325455269,-4809.28026756,0.00028978,2]
[311680369,1705325455279,-698.65798961,0.00028978,2]
[311680371,1705325455288,-698.65798961,0.00028978,2]
[311680373,1705325455298,-698.65798961,0.00028978,2]
[311680375,1705325455307,-698.65798961,0.00028978,2]
[311680377,1705325455317,-698.65798961,0.00028978,2]
[311680379,1705325455326,-698.65798961,0.00028978,2]
[311680381,1705325455335,-698.65798961,0.00028978,2]
[311680383,1705325455344,-698.65798961,0.00028978,2]
[311680385,1705325455354,-698.65798961,0.00028978,2]
[311680387,1705325455363,-698.65798961,0.00028978,2]
[311680389,1705325455372,-698.65798961,0.00028978,2]
[311680391,1705325455381,-698.65798961,0.00028978,2]
[311680393,1705325455390,-698.65798961,0.00028978,2]
[311680395,1705325455399,-698.65798961,0.00028978,2]
[311680397,1705325455408,-698.65798961,0.00028978,2]
[311680399,1705325455417,-50000.0,0.00028979,3]
[311680400,1705325455426,-50000.0,0.00028979,3]
[311680402,1705325455435,-50000.0,0.00028979,3]
[311680404,1705325455445,-87194.90786125,0.00028979,3]
[311680406,1705325455454,-5000.0,0.00028979,5]
[311680408,1705325455463,-5000.0,0.00028979,5]
[311680410,1705325455474,-5000.0,0.00028979,5]
[311680412,1705325455484,-88000.16881298,0.00028979,4]
[311680414,1705325455493,-2454.18896115,0.00029,2]
[311680416,1705325455502,-500.0,0.00029107,2]
[311680418,1705325455511,-500.0,0.00029244,2]
[311680420,1705325455519,-186.21752841,0.0002943,2]
[311680422,1705325455528,-468.08500614,0.0002943,2]
[311680424,1705325455537,-558.65258525,0.0002943,2]
[311680426,1705325455546,-49399.71085313,0.0002997,2]
[311680428,1705325455556,-3178.58490087,0.00029997,2]
[311680430,1705325455564,-154.9690062,0.0003,4]
[311680432,1705325455573,-681.78811125,0.0003,3]
[311680434,1705325455583,-2046.884197,0.0003,2]
[311680436,1705325455592,-303.0,0.0003,2]
[311680438,1705325455601,-11756.99883573,0.0003007,4]
[311680440,1705325455610,-500.0,0.00030136,2]
[311680442,1705325455619,-309.4108809,0.00030137,2]
[311680444,1705325455628,-306.2959332,0.00030137,2]
[311680446,1705325455637,-306.0,0.00030137,2]
[311680448,1705325455647,-271.0,0.00030137,2]
[311680450,1705325455656,-3479.89143237,0.00030378,4]
[311680452,1705325455665,-3712.18106101,0.00030552,2]
[311680454,1705325455674,-1189.77,0.0003057,2]
[311680456,1705325455683,-169.47629996,0.00030885,2]
[311680458,1705325455692,-495.0,0.00030901,30]
[311680460,1705325455701,-495.0,0.00030911,30]
[311680462,1705325455710,-495.0,0.00030921,30]
[311680464,1705325455719,-280.0,0.00030928,15]
[311680466,1705325455728,-153.85852713,0.00030931,7]
[311680468,1705325455736,-150.5,0.00030939,30]
[311680470,1705325455746,-150.5,0.00030949,30]
[311680472,1705325455755,-377.0,0.00030956,30]
[311680474,1705325455764,-150.5,0.00030959,30]
[311680476,1705325455773,-377.0,0.00030966,30]
[311680478,1705325455783,-377.0,0.00030976,30]
[311680480,1705325455792,-926.06657088,0.00030998,4]
[311680482,1705325455801,-622.85502582,0.00030999,4]
[311680484,1705325455810,-500.0,0.00030999,4]
[311680486,1705325455819,-400.87154269,0.00030999,4]
[311680488,1705325455829,-497.83570284,0.00030999,4]
[311680490,1705325455838,-202.73433386,0.00030999,4]
[311680492,1705325455847,-500.0,0.00030999,4]
[311680494,1705325455855,-500.0,0.00030999,4]
[311680496,1705325455864,-500.0,0.00030999,4]
[311680498,1705325455873,-500.0,0.00030999,4]
[311680499,1705325455883,-500.0,0.00030999,4]
[311680501,1705325455892,-500.0,0.00030999,4]
[311680503,1705325455901,-500.0,0.00030999,4]
[311680505,1705325455911,-500.0,0.00030999,4]
[311680508,1705325455920,-500.0,0.00030999,4]
[311680510,1705325455930,-500.0,0.00030999,4]
[311680512,1705325455942,-500.0,0.00030999,4]
[311680513,1705325455951,-500.0,0.00030999,4]
[311680515,1705325455960,-500.0,0.00030999,4]
[311680517,1705325455970,-500.0,0.00030999,4]
[311680519,1705325455980,-500.0,0.00030999,4]
[311680522,1705325455989,-500.0,0.00030999,4]
[311680523,1705325455999,-184.73196942,0.00030999,4]
[311680525,1705325456008,-500.0,0.00030999,4]
[311680526,1705325456018,-500.0,0.00030999,4]
[311680528,1705325456028,-500.0,0.00030999,4]
[311680530,1705325456037,-500.0,0.00030999,4]
[311680532,1705325456047,-500.0,0.00030999,4]
[311680535,1705325456056,-500.0,0.00030999,4]
[311680536,1705325456066,-500.0,0.00030999,4]
[311680538,1705325456076,-500.0,0.00030999,4]
[311680539,1705325456085,-500.0,0.00030999,4]
[311680540,1705325456094,-343.3,0.00030999,2]
[311680542,1705325456104,-343.3,0.00030999,2]
[311680543,1705325456114,-343.3,0.00030999,2]
[311680545,1705325456124,-343.3,0.00030999,2]
[311680546,1705325456134,-500.0,0.00030999,4]
[311680548,1705325456143,-500.0,0.00030999,4]
[311680549,1705325456153,-400.0,0.00030999,4]
[311680550,1705325456163,-500.0,0.00030999,4]
[311680551,1705325456172,-500.0,0.00030999,4]
[311680552,1705325456182,-500.0,0.00030999,4]
[311680553,1705325456192,-500.0,0.00030999,4]
[311680554,1705325456202,-32118.89785078,0.00031,4]
[311680555,1705325456211,-500.0,0.00031,120]
[311680556,1705325456221,-500.0,0.00031,120]
[311680557,1705325456231,-500.0,0.00031,120]
[311680558,1705325456240,-522.24,0.00031,120]
[311680560,1705325456249,-410.1520012,0.00031,2]
[311680562,1705325456259,-154.9690062,0.00031,2]
[311680564,1705325456268,-580.38105238,0.00031,4]
[311680566,1705325456278,-718.11946326,0.00031,4]
[311680568,1705325456287,-350.93054121,0.00031,2]
[311680570,1705325456296,-4456.41779233,0.00031,4]
[311680572,1705325456306,-282.83454941,0.00031,3]
[311680574,1705325456316,-922.39563632,0.00031,2]
[311680576,1705325456326,-150.0,0.00031,2]
[311680578,1705325456336,-118435.82304212,0.00031,14]
[311680579,1705325456346,-588.17273988,0.00031,4]
[311680598,1705325654480,-500.0,0.00030999,120]
[311680599,1705325654500,-500.0,0.00030999,120]
[311680600,1705325654520,-500.0,0.00030999,120]
[311680601,1705325654543,-500.0,0.00030999,120]
[311681088,1705326632836,-452.10708087,0.00024002,2]
[311681090,1705326632846,-154.95351395,0.00024003,2]
[311681092,1705326632855,-246.28917919,0.00024004,2]
[311681094,1705326632865,-154.95351395,0.00024005,4]
[311681096,1705326632874,-1112.22182837,0.00024007,2]
[311681098,1705326632884,-5472.7327556,0.00024847,2]
[311681100,1705326632893,-497.57048689,0.0002495,5]
[311681102,1705326632904,-164.5773758,0.00025318,2]
[311681104,1705326632914,-668.46648714,0.00026675,2]
[311681106,1705326632923,-261.41368444,0.00026675,2]
[311681108,1705326632934,-1299.26146621,0.00026675,2]
[311681110,1705326632943,-2310.38745859,0.00026675,2]
[311681112,1705326632952,-573.70446246,0.00026675,2]
[311681114,1705326632961,-500.0,0.00026676,2]
[311681116,1705326632970,-24900.0,0.00026677,2]
[311681118,1705326632979,-10135.33451069,0.000274,2]
[311681120,1705326632987,-3159.88521528,0.00027401,2]
[311681183,1705326638340,-320.00621709,0.00027401,2]
[311681184,1705326638350,-688.3625771,0.000277,2]
[311681185,1705326638359,-869.16172621,0.00027949,3]
[311681186,1705326638371,-2985.25827379,0.00027949,3]
[311681187,1705326638380,-516.48702992,0.00027959,2]
[311681188,1705326638390,-164.31941956,0.0002796,2]
[311681189,1705326638399,-162.74847299,0.00027961,2]
[311681191,1705326638409,-1743.95636298,0.00027961,2]
[311681193,1705326638418,-37022.894441,0.00027961,2]
[311681194,1705326638427,-3178.58490087,0.00027962,2]
[311681195,1705326638437,-500.0,0.00027962,2]
[311681196,1705326638447,-274.36755231,0.00028,2]
[311681197,1705326638456,-500.0,0.00028099,2]
[311681199,1705326638466,-500.0,0.00028236,2]
[311681201,1705326638475,-169.47629996,0.00028878,2]
[311681203,1705326638484,-3756.37577662,0.000289,2]
[311681204,1705326638494,-5000.0,0.00028973,5]
[311681205,1705326638503,-32802.87964722,0.00028975,4]
[311681206,1705326638513,-926.06657088,0.00028976,2]
[311681207,1705326638522,-322.02166695,0.00028977,2]
[311681208,1705326638531,-902.06325621,0.00028977,2]
[311681209,1705326638540,-562.16562428,0.00028978,14]
[311681210,1705326638549,-956.97,0.00028978,2]
[311681212,1705326638558,-956.97,0.00028978,2]
[311681214,1705326638567,-956.97,0.00028978,2]
[311681216,1705326638576,-956.97,0.00028978,2]
[311681218,1705326638585,-956.97,0.00028978,2]
[311681220,1705326638594,-956.97,0.00028978,2]
[311681222,1705326638603,-956.97,0.00028978,2]
[311681224,1705326638612,-5000.0,0.00028979,5]
[311681227,1705326638622,-50000.0,0.00028979,3]
[311681229,1705326638631,-50000.0,0.00028979,3]
[311681230,1705326638640,-50000.0,0.00028979,3]
[311681233,1705326638649,-88946.2124521,0.00028979,3]
[311681234,1705326638658,-5000.0,0.00028979,5]
[311681237,1705326638668,-62338.54476078,0.00028981,4]
[311681246,1705326638754,-5000.0,0.00028984,5]
[311681248,1705326638764,-16725.42032773,0.00028984,4]
[311681250,1705326638774,-1177.57186086,0.00029,2]
[311681252,1705326638783,-816.7,0.00029079,4]
[311681254,1705326638793,-200.0,0.00029343,15]
[311681256,1705326638802,-164.372067,0.00029346,2]
[311681258,1705326638812,-966.0898354,0.0002943,2]
[311681260,1705326638821,-1000.0,0.0002943,7]
[311681262,1705326638830,-223.44662386,0.0002943,2]
[311681264,1705326638839,-154.9690062,0.0003,4]
[311681266,1705326638848,-333.10219149,0.0003,3]
[311681268,1705326638857,-223.91761164,0.0003,4]
[311681270,1705326638866,-2046.884197,0.0003,2]
[311681272,1705326638876,-303.0,0.0003,2]
[311681274,1705326638885,-11756.99883573,0.00030069,4]
[311681276,1705326638897,-500.0,0.00030136,2]
[311681278,1705326638906,-271.0,0.00030137,2]
[311681280,1705326638915,-306.2959332,0.00030137,2]
[311681282,1705326638923,-306.0,0.00030137,2]
[311681284,1705326638933,-309.4108809,0.00030137,2]
[311681286,1705326638943,-1351.23964793,0.000305,2]
[311681288,1705326638952,-3712.18106101,0.00030552,2]
[311681290,1705326638961,-495.0,0.0003067,30]
[311681292,1705326638971,-150.0,0.00030675,2]
[311681294,1705326638981,-495.0,0.0003068,30]
[311681296,1705326638990,-495.0,0.0003069,30]
[311681299,1705326638999,-150.5,0.0003087,30]
[311681301,1705326639008,-150.5,0.0003088,30]